bitfinex/quotes_ETHUSD_20250620
["timestamp","ask_amount","ask_price","bid_price","bid_amount"]
[1750419396240,8.014,2546.5,2546.1,4.49793501]
[1750419396840,11.94106789,2546.5,2546.1,0.57042437]
[1750419397062,0.36423417,2546.4,2546.1,0.57042437]
[1750419397338,4.29138427,2546.4,2546.1,0.57042437]
[1750419397539,3.9271501,2546.4,2546.0,3.92766658]
[1750419398282,3.9271501,2546.4,2545.9,4.75729578]
[1750419398433,10.71917004,2546.4,2545.8,3.92793421]
[1750419398639,10.71956722,2546.2,2545.7,3.92811075]
[1750419398834,10.71956722,2546.2,2545.7,4.79145591]
[1750419399038,3.92763715,2546.1,2545.7,0.86334516]
[1750419399238,3.92763715,2546.1,2545.7,4.79153175]
[1750419399474,10.71951838,2546.2,2545.7,4.79153175]
[1750419400581,10.71951838,2546.2,2545.8,3.92801047]
[1750419400875,6.374,2546.2,2545.9,3.92785272]
[1750419403766,6.374,2546.2,2545.8,4.87761304]
[1750419404177,6.374,2546.2,2545.9,3.92788019]
[1750419404900,6.374,2546.2,2546.0,3.9277226]
[1750419406181,6.374,2546.2,2545.9,3.92779026]
[1750419406382,6.374,2546.2,2545.7,3.92813029]
[1750419406587,6.79200959,2546.0,2545.6,3.92827325]
[1750419406787,6.79200959,2546.0,2545.4,5.33002081]
[1750419406788,6.79200959,2546.0,2545.5,3.92847722]
[1750419406959,6.79200959,2546.0,2545.6,3.92828419]
[1750419407893,6.79200959,2546.0,2545.5,3.92841376]
[1750419407894,8.95841017,2546.0,2545.5,3.92841376]
[1750419408186,0.8101,2545.9,2545.5,3.92841376]
[1750419408491,0.8101,2545.9,2545.7,3.92812081]
[1750419409201,5.03064595,2546.0,2545.7,3.92812081]
[1750419409485,0.8075,2546.1,2545.7,3.92812081]
[1750419409789,0.8075,2546.1,2545.8,3.92788756]
[1750419409976,6.374,2546.0,2545.8,4.71348693]
[1750419410593,6.374,2546.0,2545.8,0.78559937]
[1750419410790,6.374,2546.0,2545.8,4.71363081]
[1750419411372,6.374,2546.0,2545.8,0.78559937]
[1750419412295,6.374,2546.0,2545.8,4.71357098]
[1750419413592,6.374,2546.0,2545.9,0.4713571]
[1750419413796,1.64,2546.1,2545.9,4.39924114]
[1750419414088,1.64,2546.1,2546.0,3.92772977]
[1750419414293,2.00516227,2546.1,2546.0,3.92772977]
[1750419414494,2.00516375,2546.1,2545.9,4.39915745]
[1750419414689,10.0,2546.4,2546.0,0.98707789]
[1750419414896,0.36516333,2546.3,2546.0,4.91467717]
[1750419415075,0.36516349,2546.2,2546.1,3.9275642]
[1750419415918,0.8204,2546.9,2546.2,0.7609]
[1750419416078,0.36528022,2546.8,2546.6,3.92672676]
[1750419416285,0.36529191,2546.7,2546.6,3.92672676]
[1750419416989,3.10635463,2547.1,2546.7,3.92659824]
[1750419417192,0.36533976,2547.0,2546.7,3.92659824]
[1750419417397,0.36533856,2546.9,2546.7,3.92665017]
[1750419417595,3.10635463,2547.1,2546.8,0.86037062]
[1750419418202,0.36533831,2547.0,2546.8,0.86037062]
[1750419418607,3.92621515,2547.0,2546.8,0.86037062]
[1750419418807,3.92621515,2547.0,2546.6,4.67697493]
[1750419419723,3.92621515,2547.0,2546.6,0.7503]
[1750419420681,13.82448002,2547.1,2546.6,4.67709761]
[1750419420881,0.36475978,2547.0,2546.7,3.92659301]
[1750419421093,9.89836422,2547.1,2546.7,3.92659301]
[1750419421314,9.89836422,2547.1,2546.7,4.7869831]
[1750419421618,9.89836422,2547.1,2546.8,3.92648045]
[1750419421619,0.36458463,2547.0,2546.8,3.92648045]
[1750419421988,3.10635463,2547.1,2546.8,3.92648045]
[1750419422521,3.10635463,2547.1,2546.7,0.86036906]
[1750419422723,1.639,2547.4,2547.0,4.72008767]
[1750419422913,8.012,2547.4,2547.1,4.79063131]
[1750419423222,10.0,2547.9,2547.6,3.92521757]
[1750419423223,0.7558,2547.9,2547.6,3.92521757]
[1750419423411,1.639,2548.0,2547.6,3.92526076]
[1750419423596,1.639,2548.0,2547.8,3.92495386]
[1750419423919,1.639,2548.0,2547.7,3.92500154]
[1750419425827,1.639,2548.0,2547.7,0.86442538]
[1750419426035,10.0,2548.2,2547.8,3.92487197]
[1750419426609,13.92434069,2548.2,2547.7,3.92502855]
[1750419427811,13.92434069,2548.2,2547.7,3.92501947]
[1750419428231,13.92434069,2548.2,2547.8,3.92492629]
[1750419429012,10.0,2548.2,2547.8,3.92492629]
[1750419429198,10.0,2548.2,2547.8,4.70992858]
[1750419429933,13.92435297,2548.2,2547.8,0.78500229]
[1750419430133,10.0,2548.2,2547.8,0.78500229]
[1750419430332,13.9244225,2548.2,2547.8,4.70994788]
[1750419430496,3.92450357,2548.1,2547.8,0.78500229]
[1750419430702,3.92450357,2548.1,2547.6,3.92514475]
[1750419430897,10.71651316,2548.1,2547.5,4.71926024]
[1750419431102,10.71651316,2548.1,2547.6,3.92514498]
[1750419431530,10.71651316,2548.1,2547.7,3.92510604]
[1750419431714,10.71651316,2548.1,2547.6,3.92517346]
[1750419431909,3.9247708,2548.0,2547.7,0.86444439]
[1750419432117,6.79200959,2548.1,2547.6,3.92516422]
[1750419432315,3.92464749,2548.0,2547.6,3.92516422]
[1750419432522,3.92457283,2548.1,2547.5,4.71922684]
[1750419432839,3.92457283,2548.1,2547.6,3.92516558]
[1750419433142,20.71641695,2548.2,2547.7,3.92509672]
[1750419433350,20.71639293,2548.2,2547.7,0.86441623]
[1750419433503,3.92496211,2547.8,2547.4,3.92549981]
[1750419433836,6.79200959,2547.8,2547.4,3.92549981]
[1750419434200,6.79200959,2547.8,2547.2,3.92573725]
[1750419434401,10.71736633,2547.6,2547.3,0.47903756]
[1750419435198,6.37,2547.7,2547.3,4.40470124]
[1750419438458,6.37,2547.7,2547.1,0.86463833]
[1750419438635,6.37,2547.7,2547.6,3.92526299]
[1750419439037,2.4174,2547.9,2547.6,3.92526299]
[1750419439240,1.639,2547.9,2547.6,3.92517814]
[1750419439429,8.009,2547.9,2547.7,3.92499737]
[1750419439781,8.009,2547.9,2547.8,3.92495486]
[1750419439923,8.009,2547.9,2547.6,3.92524617]
[1750419440118,8.009,2547.9,2547.7,3.92510261]
[1750419441164,8.009,2547.9,2547.8,3.92495486]
[1750419442934,1.639,2547.9,2547.8,3.92495486]
[1750419443130,1.639,2547.9,2547.4,3.9254901]
[1750419443334,1.639,2547.9,2547.4,4.65740213]
[1750419443534,5.56380894,2547.9,2547.5,3.92534681]
[1750419443736,1.639,2547.9,2547.5,3.92534681]
[1750419444267,1.639,2547.9,2547.6,3.92522002]
[1750419444863,1.639,2547.9,2547.5,3.92533243]
[1750419446282,5.56380532,2547.9,2547.5,3.92533243]
[1750419446658,1.639,2547.9,2547.5,3.92533243]
[1750419447269,1.639,2547.9,2547.6,3.92525313]
[1750419447577,1.639,2547.9,2547.7,3.92508332]
[1750419447946,1.639,2547.9,2547.6,3.92520254]
[1750419448849,5.56380666,2547.9,2547.5,3.92533984]
[1750419449049,1.639,2547.9,2547.5,3.92533984]
[1750419449282,5.56380521,2547.9,2547.5,3.92533984]
[1750419450583,1.639,2547.9,2547.6,3.92525882]
[1750419450987,0.36507559,2547.8,2547.5,3.9253364]
[1750419451188,5.56389445,2547.9,2547.4,4.65738912]
[1750419451480,4.29012986,2547.8,2547.4,0.73191203]
[1750419451683,3.9250455,2547.8,2547.4,4.65747385]
[1750419451983,5.56388777,2547.9,2547.4,4.65747385]
[1750419452192,0.36508638,2547.8,2547.4,4.65747385]
[1750419452354,5.56388777,2547.9,2547.4,4.65747385]
[1750419452557,0.36508636,2547.8,2547.4,4.65747385]
[1750419452853,0.36508636,2547.7,2547.6,3.92526299]
[1750419453789,0.36587684,2547.7,2547.6,3.92526299]
[1750419454884,0.36589643,2547.7,2547.5,4.86489226]
[1750419455088,5.56381813,2547.9,2547.5,4.86489226]
[1750419455297,0.36589656,2547.8,2547.6,3.92523911]
[1750419455457,0.36589656,2547.7,2547.5,4.86488373]
[1750419455657,1.639,2547.9,2547.5,4.86488373]
[1750419455857,0.36592461,2547.8,2547.5,4.86488373]
[1750419456080,0.36592461,2547.7,2547.5,4.86488373]
[1750419456390,1.639,2547.9,2547.6,4.80429874]
[1750419456591,0.36595026,2547.8,2547.6,4.80422667]
[1750419456893,0.36595026,2547.7,2547.6,4.80422667]
[1750419457268,0.36594273,2547.7,2547.6,4.80422667]
[1750419457587,0.36594297,2547.7,2547.6,4.80422667]
[1750419457791,0.36594297,2547.7,2547.6,0.87903605]
[1750419457993,5.56389306,2547.9,2547.4,3.92551957]
[1750419458189,0.36600751,2547.8,2547.4,3.92551957]
[1750419458356,5.56389306,2547.9,2547.4,3.92551957]
[1750419458357,0.36601981,2547.7,2547.4,3.92551957]
[1750419458557,0.36601981,2547.6,2547.4,3.92551957]
[1750419458753,3.92496855,2547.8,2547.5,0.86636196]
[1750419458970,0.36601447,2547.7,2547.5,0.86636196]
[1750419459192,0.36601658,2547.6,2547.5,0.86636196]
[1750419459394,0.36601658,2547.6,2547.3,3.92558921]
[1750419459688,0.8144,2547.7,2547.3,3.92557591]
[1750419459994,0.36601171,2547.6,2547.4,3.92555027]
[1750419460192,0.8144,2547.7,2547.4,3.92555027]
[1750419460398,0.36600904,2547.6,2547.5,3.92541707]
[1750419460697,0.36600881,2547.6,2547.5,3.92541707]
[1750419460892,6.369,2547.8,2547.5,3.92541707]
[1750419461190,0.36612002,2547.7,2547.5,3.92541707]
[1750419461390,7.92212961,2547.6,2546.7,2.49836906]
[1750419461594,0.36612002,2547.5,2546.9,3.9262251]
[1750419461797,7.15812961,2547.4,2547.0,3.92609237]
[1750419462097,0.36607102,2547.3,2547.0,3.92609237]
[1750419462300,0.36607102,2547.2,2547.1,0.78523175]
[1750419462595,0.36607627,2547.2,2547.1,0.78523175]
[1750419462768,6.79200959,2547.4,2547.1,0.78523175]
[1750419462973,0.36607279,2547.3,2547.1,0.78523175]
[1750419463179,0.36607276,2547.2,2547.1,4.71125626]
[1750419463375,0.36607284,2547.2,2547.1,4.71125626]
[1750419463576,0.36607498,2547.3,2547.1,0.78523175]
[1750419463802,6.79200959,2547.4,2547.1,0.78523175]
[1750419464101,0.36572284,2547.3,2547.1,4.71125771]
[1750419464312,10.71769431,2547.4,2547.1,0.78523175]
[1750419464500,0.3657005,2547.3,2547.0,3.92609372]
[1750419464804,10.71761716,2547.4,2546.9,3.92625509]
[1750419464992,0.3657008,2547.3,2547.0,3.92615738]
[1750419465178,10.71765273,2547.4,2546.9,3.92625524]
[1750419465503,0.36569635,2547.3,2546.9,4.79199217]
[1750419465717,10.71765273,2547.4,2546.9,4.79199217]
[1750419465914,0.36569802,2547.3,2546.9,4.79199217]
[1750419466212,10.71765273,2547.4,2546.9,4.79199217]
[1750419466408,0.36552826,2547.3,2546.9,4.79199217]
[1750419466613,10.71765273,2547.4,2547.0,4.87847873]
[1750419467111,6.79200959,2547.4,2547.0,0.95231062]
[1750419467292,6.79200959,2547.4,2546.9,3.92629342]
[1750419467293,0.7638,2547.2,2546.9,3.92629342]
[1750419467493,0.7638,2547.2,2547.0,3.9261723]
[1750419467882,6.79200959,2547.4,2547.0,3.9261723]
[1750419468218,11.48139635,2547.4,2547.0,3.9261723]
[1750419468518,0.36548027,2547.3,2547.0,3.9261723]
[1750419468686,11.48139635,2547.4,2547.0,3.9261723]
[1750419468886,0.73096877,2547.3,2547.0,3.9261723]
[1750419469111,0.36548339,2547.3,2547.0,3.9261723]
[1750419475336,0.36548339,2547.3,2547.1,3.92595746]
[1750419475491,0.36548339,2547.3,2547.2,3.92587939]
[1750419476826,0.36548339,2547.3,2546.8,3.92643347]
[1750419477129,0.36548339,2547.3,2546.0,8.63763257]
[1750419477130,6.79200959,2546.9,2546.4,3.92698399]
[1750419477291,17.08737261,2546.9,2546.5,3.92689588]
[1750419477486,0.8258,2546.8,2546.5,3.92689588]
[1750419477892,0.8258,2546.8,2546.6,3.92678941]
[1750419478310,6.369,2546.9,2546.6,3.92678941]
[1750419479545,6.369,2546.9,2546.5,3.92687476]
[1750419479713,6.369,2546.9,2546.5,4.79461675]
[1750419480042,6.369,2546.9,2546.6,3.92679257]
[1750419480449,6.369,2546.9,2546.5,0.86774199]
[1750419480647,6.369,2546.9,2546.7,3.92653412]
[1750419480821,6.369,2546.9,2546.6,3.92673105]
[1750419481237,6.369,2546.9,2546.7,3.92663531]
[1750419481435,4.67732831,2547.2,2546.7,3.92663531]
[1750419481633,0.3648476,2547.1,2546.9,3.92633097]
[1750419481944,6.369,2547.1,2546.8,3.92641006]
[1750419483165,6.369,2547.1,2546.9,3.9263011]
[1750419483346,6.369,2547.1,2546.7,4.75308963]
[1750419483347,6.369,2547.1,2546.8,3.926402]
[1750419483553,6.369,2547.1,2546.8,4.88156596]
[1750419484560,6.369,2547.1,2546.8,0.95516396]
[1750419484864,0.36548339,2547.3,2546.8,0.95516396]
[1750419485160,0.36487171,2547.2,2546.8,3.92643586]
[1750419485320,4.29126374,2547.3,2546.8,3.92643586]
[1750419485522,4.29085139,2547.2,2546.8,3.92643586]
[1750419485724,3.92590104,2547.2,2546.8,3.92643586]
[1750419486125,3.92590104,2547.2,2546.7,4.75307975]
[1750419486323,3.92590104,2547.2,2546.8,0.86797796]
[1750419487262,3.92603828,2547.1,2546.8,0.86797796]
[1750419487862,0.36548339,2547.3,2546.8,4.79446316]
[1750419488059,4.29086121,2547.2,2546.8,4.79446316]
[1750419488371,0.36496961,2547.1,2546.9,3.92633467]
[1750419488540,4.29127695,2547.3,2547.0,0.47943126]
[1750419488737,4.29127695,2547.3,2546.9,3.92633467]
[1750419488738,0.36512197,2547.2,2546.9,3.92633467]
[1750419488940,3.92587964,2547.2,2546.8,4.79441067]
[1750419489342,0.3651566,2547.1,2546.9,3.9262992]
[1750419489543,0.36515731,2547.2,2546.8,4.79433914]
[1750419489744,0.36515731,2547.1,2546.8,4.79433914]
[1750419490058,4.29121363,2547.1,2546.9,0.95474388]
[1750419490224,4.29121363,2547.1,2546.7,4.7531078]
[1750419490225,3.92605632,2547.1,2546.7,4.7531078]
[1750419490431,3.9259503,2547.2,2546.7,4.7531078]
[1750419490645,0.36515689,2547.1,2546.8,3.92646798]
[1750419490849,4.29110036,2547.2,2546.8,3.92646798]
[1750419491098,0.36515689,2547.1,2546.8,3.92646798]
[1750419491249,3.92594347,2547.2,2546.9,0.86795758]
[1750419491444,0.36547161,2547.1,2546.9,0.86795758]
[1750419491657,4.29130056,2547.3,2546.9,0.86795758]
[1750419491881,0.36546928,2547.2,2546.9,0.86795758]
[1750419492101,0.36546928,2547.1,2546.9,4.79428974]
[1750419492407,10.66030056,2547.3,2547.0,0.47942897]
[1750419492602,0.36550513,2547.2,2547.0,0.47942897]
[1750419492749,0.36550513,2547.1,2547.0,0.47942897]
[1750419493150,0.36550513,2547.2,2547.0,0.47942897]
[1750419493353,6.73448339,2547.3,2547.0,4.40561624]
[1750419493565,0.36551346,2547.2,2547.0,4.40561624]
[1750419493763,6.73448339,2547.3,2547.0,0.47942897]
[1750419493969,0.36557025,2547.2,2547.0,3.92617392]
[1750419494163,10.66021438,2547.3,2546.9,3.96553883]
[1750419494369,0.36557109,2547.2,2546.8,3.92643632]
[1750419494600,0.36557109,2547.1,2546.8,3.92643632]
[1750419494807,10.66021438,2547.3,2546.8,3.92643632]
[1750419494982,4.29153179,2547.2,2546.7,0.8265]
[1750419495183,3.92595983,2547.2,2546.8,4.40181749]
[1750419496468,10.66027636,2547.3,2546.8,4.40181749]
[1750419496791,4.29161491,2547.2,2546.8,4.40181749]
[1750419497104,3.92596722,2547.2,2546.8,0.4753236]
[1750419497260,3.92596722,2547.2,2546.8,4.40180124]
[1750419497655,0.36565064,2547.1,2546.9,4.44915998]
[1750419497886,10.66028492,2547.3,2546.9,4.44915998]
[1750419498093,0.36568155,2547.2,2546.9,4.44915998]
[1750419498294,0.3656813,2547.1,2546.9,0.56208912]
[1750419498493,10.66028492,2547.3,2546.9,0.56208912]
[1750419498679,0.36568131,2547.2,2546.9,0.52283012]
[1750419498888,0.36568131,2547.1,2546.9,0.52283012]
[1750419499196,3.92588839,2547.2,2546.9,0.52283012]
[1750419499353,0.3657173,2547.1,2546.9,0.52283012]
[1750419499553,3.92588839,2547.2,2546.9,0.52283012]
[1750419499754,0.36571802,2547.1,2546.9,0.52283012]
[1750419499985,3.92605556,2547.1,2546.9,0.52283012]
[1750419501097,3.92598051,2547.2,2546.9,0.52283012]
[1750419501601,0.36572159,2547.1,2546.9,0.52283012]
[1750419501759,3.925963,2547.2,2546.9,0.52283012]
[1750419501960,0.36580566,2547.1,2546.9,0.52283012]
[1750419502161,3.925963,2547.2,2546.9,0.52283012]
[1750419502357,0.36580926,2547.1,2546.9,0.52283012]
[1750419502602,3.925963,2547.2,2546.9,0.52283012]
[1750419502895,0.36581258,2547.1,2546.9,0.52283012]
[1750419503097,3.925963,2547.2,2546.9,0.52283012]
[1750419503303,0.36581269,2547.1,2546.9,0.52283012]
[1750419503504,3.92603736,2547.1,2546.9,0.52283012]
[1750419504898,3.92595674,2547.2,2546.9,0.52283012]
[1750419505095,0.36595248,2547.1,2546.9,0.52283012]
[1750419505403,3.92595674,2547.2,2546.9,0.52283012]
[1750419505606,0.3659525,2547.1,2546.8,4.40181274]
[1750419505819,3.92595674,2547.2,2546.8,4.40181274]
[1750419505985,0.36594836,2547.1,2546.8,4.40181274]
[1750419506186,3.92595674,2547.2,2546.8,4.40181274]
[1750419506483,0.36594857,2547.1,2546.8,4.40181274]
[1750419506685,3.92595674,2547.2,2546.9,0.52283127]
[1750419506885,3.92595674,2547.2,2546.8,0.4753236]
[1750419507084,0.36594768,2547.1,2546.8,0.4753236]
[1750419507327,3.92595674,2547.2,2546.8,4.40181378]
[1750419507624,0.36595992,2547.1,2546.8,4.40181378]
[1750419507794,0.36595992,2547.0,2546.8,4.40181378]
[1750419507995,3.92595674,2547.2,2546.9,0.52283138]
[1750419508195,0.36602666,2547.1,2546.8,4.40181378]
[1750419508399,0.36602666,2547.0,2546.8,4.40181378]
[1750419508704,3.92595674,2547.2,2546.8,4.40181378]
[1750419509015,0.36603453,2547.1,2546.8,4.40181378]
[1750419509206,0.36603453,2547.0,2546.8,4.40181378]
[1750419509426,4.29129419,2547.3,2546.9,0.91549577]
[1750419509617,0.36604155,2547.2,2546.8,4.40181378]
[1750419509812,0.36604433,2547.1,2546.9,3.92633632]
[1750419510019,0.36604433,2547.0,2546.9,3.92633632]
[1750419510218,0.36604454,2547.0,2546.8,0.4753236]
[1750419510418,3.92620894,2547.0,2546.6,3.92673305]
[1750419510620,3.92620894,2547.0,2546.6,4.40170635]
[1750419510809,11.52153038,2547.1,2546.6,4.40170635]
[1750419511012,0.36603895,2547.0,2546.6,4.40170635]
[1750419511223,11.52153038,2547.1,2546.6,4.40170635]
[1750419511419,0.36605448,2547.0,2546.6,4.40170635]
[1750419511618,11.52153038,2547.1,2546.7,3.9266301]
[1750419511921,0.36615015,2547.0,2546.7,3.9266301]
[1750419512218,4.29122976,2547.3,2546.8,3.9264897]
[1750419512219,11.88663935,2547.3,2546.8,3.9264897]
[1750419512419,6.368,2547.0,2546.8,3.92649599]
[1750419512585,6.368,2547.1,2546.8,3.92649599]
[1750419512994,0.36614536,2547.0,2546.9,3.92634182]
[1750419513216,0.36614536,2547.0,2546.8,3.926407]
[1750419513425,6.368,2547.1,2546.8,4.92479219]
[1750419513732,0.36614596,2547.0,2546.8,4.92479219]
[1750419513894,6.368,2547.1,2546.8,4.92479219]
[1750419514232,0.36615525,2547.0,2546.9,3.92634182]
[1750419515229,0.3661545,2547.0,2546.9,3.92634182]
[1750419515527,0.36615517,2547.0,2546.9,3.92634182]
[1750419515760,0.3661552,2547.0,2546.9,3.92634182]
[1750419517353,6.368,2547.1,2546.9,3.92634182]
[1750419517560,0.36617587,2547.0,2546.9,3.92634182]
[1750419518155,0.3661764,2547.0,2546.8,4.92481102]
[1750419518450,0.36617115,2546.9,2546.8,3.92645936]
[1750419518657,13.16000959,2547.1,2546.8,3.92645936]
[1750419518844,0.36617072,2547.0,2546.7,3.92656621]
[1750419519152,0.36617072,2546.9,2546.7,3.92656621]
[1750419519355,6.368,2547.0,2546.7,3.92656621]
[1750419519546,0.36627882,2546.9,2546.7,3.92656621]
[1750419519869,6.368,2547.0,2546.8,3.9264872]
[1750419520468,0.36628719,2546.9,2546.8,3.9264872]
[1750419520627,6.368,2547.0,2546.7,3.9265541]
[1750419520829,6.368,2547.0,2546.7,3.92654409]
[1750419521229,6.368,2547.0,2546.8,3.92648467]
[1750419521760,6.368,2547.0,2546.9,3.92634182]
[1750419522057,6.73427935,2547.0,2546.9,3.92634182]
[1750419522264,6.73427669,2547.0,2546.9,3.92634182]
[1750419523240,0.36627669,2547.0,2546.9,4.71162315]
[1750419523564,0.36627033,2547.0,2546.9,4.71162315]
[1750419523957,0.36627621,2547.0,2546.9,4.71162315]
[1750419524342,0.36627608,2547.0,2546.9,4.71162315]
[1750419525963,0.36627556,2547.0,2546.9,4.71162315]
[1750419526131,0.36628574,2547.0,2546.9,0.78528133]
[1750419526858,0.36628574,2547.0,2546.9,4.71162315]
[1750419527156,0.36628777,2547.0,2546.9,4.71162315]
[1750419527362,0.36628782,2547.0,2546.9,0.78528133]
[1750419528263,0.36628782,2547.0,2546.8,3.92642063]
[1750419528264,0.36630308,2547.0,2546.8,3.92642063]
[1750419528472,3.92588301,2547.2,2546.8,3.92642063]
[1750419528640,0.36630304,2547.1,2546.7,3.92657977]
[1750419528845,0.36630304,2547.0,2546.7,3.92657977]
[1750419529170,3.9258893,2547.2,2546.7,3.92657977]
[1750419529362,0.36630368,2547.1,2546.7,5.42521748]
[1750419529564,0.36630368,2547.0,2546.7,5.42521748]
[1750419529767,3.9258893,2547.2,2546.7,5.42521748]
[1750419529970,0.36630119,2547.1,2546.7,5.42521748]
[1750419530265,0.36630144,2547.0,2546.7,5.42521748]
[1750419530470,3.9258893,2547.2,2546.8,4.93829471]
[1750419530657,0.3663011,2547.1,2546.8,4.93829471]
[1750419530856,0.3663011,2547.0,2546.8,4.93829471]
[1750419531052,3.9258893,2547.2,2546.8,4.93829471]
[1750419531253,0.36630196,2547.1,2546.8,4.93829471]
[1750419531459,0.36630196,2547.0,2546.8,1.01180148]
[1750419531633,3.9258893,2547.2,2546.8,1.01180148]
[1750419531841,0.36630158,2547.1,2546.8,1.01180148]
[1750419532159,0.36630165,2547.0,2546.8,1.01180148]
[1750419532358,3.9258893,2547.2,2546.8,1.01180148]
[1750419532748,4.29236038,2547.1,2546.8,1.01180148]
[1750419533071,0.36630239,2547.0,2546.8,1.01180148]
[1750419533264,3.92624699,2547.0,2546.7,1.49863771]
[1750419533441,3.92609821,2547.1,2546.7,3.92663473]
[1750419533653,0.36630226,2547.0,2546.7,3.92663473]
[1750419533858,3.92609821,2547.1,2546.7,3.92663473]
[1750419534154,0.36630227,2547.0,2546.7,3.92663473]
[1750419534353,3.92609821,2547.1,2546.7,3.92663473]
[1750419534559,0.36629839,2547.0,2546.7,3.92663473]
[1750419534758,3.92604289,2547.1,2546.8,0.86586893]
[1750419534986,0.36629847,2547.0,2546.7,3.92663473]
[1750419535138,3.92604289,2547.1,2546.7,3.92663473]
[1750419535541,0.3662978,2547.0,2546.7,3.92663473]
[1750419535755,3.92604289,2547.1,2546.7,3.92663473]
[1750419535958,0.36629802,2547.0,2546.9,3.92634182]
[1750419536164,0.36629802,2547.0,2546.9,4.75481239]
[1750419536372,0.36629802,2547.0,2546.9,5.57301239]
[1750419536737,6.73148339,2547.3,2546.9,5.5729196]
[1750419537061,0.36629522,2547.2,2547.0,3.92617617]
[1750419537256,0.36629522,2547.1,2547.0,3.92617617]
[1750419537469,0.36629522,2547.1,2547.0,4.87217736]
[1750419538173,0.36548339,2547.3,2547.0,4.87217736]
[1750419538370,0.36620104,2547.2,2547.1,3.92603352]
[1750419538737,0.36548339,2547.3,2547.1,3.92603352]
[1750419538943,0.36620274,2547.2,2547.0,4.87210798]
[1750419539251,0.36619446,2547.1,2547.0,0.94600119]
[1750419539839,0.36619556,2547.1,2547.0,0.94600119]
[1750419540054,0.36619556,2547.1,2546.8,3.92640031]
[1750419540239,4.29126844,2547.3,2546.9,3.9263234]
[1750419540454,0.36616238,2547.2,2546.9,3.9263234]
[1750419540640,0.36616238,2547.1,2546.9,3.9263234]
[1750419540853,4.29126844,2547.3,2546.8,3.92645329]
[1750419541054,0.36616255,2547.2,2546.8,4.79132641]
[1750419541286,0.36616255,2547.1,2546.8,4.79132641]
[1750419541597,4.29126844,2547.3,2546.8,4.79132641]
[1750419541799,0.36616213,2547.2,2546.8,4.79132641]
[1750419541993,0.36616213,2547.1,2546.8,4.79132641]
[1750419542293,4.29126844,2547.3,2546.9,0.95136043]
[1750419542496,0.36615028,2547.2,2546.9,4.87769636]
[1750419542660,0.36615028,2547.1,2546.9,4.87769636]
[1750419543001,4.29126844,2547.3,2546.9,0.95136043]
[1750419543202,0.36612611,2547.2,2546.8,3.92641718]
[1750419543412,0.36612611,2547.1,2546.9,3.92634095]
[1750419543598,4.29126844,2547.3,2546.9,3.92634095]
[1750419543796,0.36612594,2547.2,2546.9,3.92634095]
[1750419543989,0.36612594,2547.1,2546.8,3.92641542]
[1750419544190,4.29126844,2547.3,2546.9,0.8648691]
[1750419544392,0.36612076,2547.2,2546.9,4.79120982]
[1750419544590,0.36612076,2547.1,2546.9,4.79120982]
[1750419544800,0.36548339,2547.3,2547.1,3.9259889]
[1750419545017,0.36611859,2547.2,2547.1,3.9259889]
[1750419545318,0.36611859,2547.2,2547.0,3.92611323]
[1750419545500,0.36548339,2547.3,2547.0,4.79783809]
[1750419545817,0.36611213,2547.2,2547.0,4.79783809]
[1750419546017,0.36548339,2547.3,2547.0,4.79783809]
[1750419546216,0.36611187,2547.2,2547.0,4.79783809]
[1750419546514,0.36548339,2547.3,2547.0,4.79783809]
[1750419546812,0.36611251,2547.2,2547.0,4.79783809]
[1750419546994,0.36548339,2547.3,2547.0,4.79783809]
[1750419547394,0.36611236,2547.2,2547.0,4.79783809]
[1750419547595,0.36548339,2547.3,2547.0,4.79783809]
[1750419547819,0.36609319,2547.2,2547.0,0.87172486]
[1750419548030,4.29121324,2547.3,2546.8,3.92640645]
[1750419548183,0.3660935,2547.2,2546.8,3.92640645]
[1750419548383,4.29121324,2547.3,2546.8,3.92640645]
[1750419548606,0.36609331,2547.2,2546.9,3.92633559]
[1750419548783,4.29121324,2547.3,2546.9,3.92633559]
[1750419548980,0.36608881,2547.2,2546.9,3.92633559]
[1750419549287,4.29121324,2547.3,2546.9,4.7911967]
[1750419549483,0.36608859,2547.2,2546.9,4.7911967]
[1750419549687,0.36548339,2547.3,2547.0,3.92608896]
[1750419549888,0.36608875,2547.2,2547.0,3.92608896]
[1750419550088,0.36548339,2547.3,2546.9,4.7911167]
[1750419550309,0.36608865,2547.2,2546.9,4.7911167]
[1750419550513,0.36548339,2547.3,2546.9,4.7911167]
[1750419550699,0.36607879,2547.2,2546.9,4.7911167]
[1750419550903,4.29122881,2547.3,2546.9,4.83037596]
[1750419551103,0.36608175,2547.2,2546.9,4.83037596]
[1750419551299,4.29122881,2547.3,2546.9,4.83037596]
[1750419551607,0.36608606,2547.2,2546.9,4.83037596]
[1750419551805,3.92589653,2547.2,2546.9,0.86486111]
[1750419552010,0.36608454,2547.1,2546.8,3.92646527]
[1750419552238,3.92589653,2547.2,2546.8,3.92646527]
[1750419552534,0.36608625,2547.1,2546.8,3.92646527]
[1750419552734,3.92589653,2547.2,2546.8,3.92646527]
[1750419553185,0.36608597,2547.1,2546.8,4.79135694]
[1750419553393,3.92589653,2547.2,2546.8,4.79135694]
[1750419553691,0.36608611,2547.1,2546.8,4.79135694]
[1750419553888,3.92589653,2547.2,2546.8,4.79135694]
[1750419554107,0.36608755,2547.1,2546.8,4.79135694]
[1750419554304,5.08969817,2547.3,2546.8,4.79135694]
[1750419554502,4.29198387,2547.2,2546.8,3.92646527]
[1750419554711,0.36608755,2547.1,2546.8,3.92646527]
[1750419554930,3.92589632,2547.2,2546.8,3.92646527]
[1750419555236,0.36608749,2547.1,2546.8,3.92646527]
[1750419555436,3.92589632,2547.2,2546.8,3.92646527]
[1750419555734,0.36608737,2547.1,2546.8,3.92646527]
[1750419555928,5.08970455,2547.3,2546.8,4.79134659]
[1750419556142,0.36609626,2547.2,2546.9,3.92632307]
[1750419556437,0.36609626,2547.1,2546.9,3.92632307]
[1750419556593,1.16388339,2547.3,2546.9,3.92632307]
[1750419556798,1.16388339,2547.3,2547.0,3.92618748]
[1750419556799,0.36608687,2547.2,2547.0,3.92618748]
[1750419557016,0.36608687,2547.1,2547.0,3.92618748]
[1750419557239,0.36608687,2547.1,2547.0,0.87175341]
[1750419557599,0.36608687,2547.1,2547.0,4.79794108]
[1750419558017,0.36611026,2547.1,2547.0,4.79794108]
[1750419558408,0.36548339,2547.3,2547.0,4.79794108]
[1750419558640,0.36608514,2547.2,2547.0,3.92618767]
[1750419558999,0.36610848,2547.1,2546.9,3.92624738]
[1750419559210,0.36548339,2547.3,2547.0,3.92618767]
[1750419559437,0.36548339,2547.3,2547.1,3.92603133]
[1750419559647,0.36613551,2547.2,2547.1,3.92603133]
[1750419559846,0.36613551,2547.2,2547.1,1.79239032]
[1750419560147,0.36548339,2547.3,2547.1,5.71836061]
[1750419560357,0.36606934,2547.2,2547.0,5.68752302]
[1750419560506,0.36548339,2547.3,2547.0,5.68752302]